bitfinex-derivatives/quotes_SOLF0:USTF0_20250413
["timestamp","ask_amount","ask_price","bid_price","bid_amount"]
[1744552078446,2.0706,128.19,128.11,42.74]
[1744552079357,0.05139963,128.16,128.15,7.8063]
[1744552079952,0.05139963,128.16,128.15,50.5463]
[1744552083348,9.963e-05,128.16,128.15,50.5463]
[1744552083857,9.963e-05,128.16,128.14,7.86220126]
[1744552084660,9.963e-05,128.16,128.15,7.8063]
[1744552086058,9.963e-05,128.16,128.14,0.05560126]
[1744552086656,2.14539963,128.16,128.09,44.09765142]
[1744552086859,9.7981,128.15,128.09,44.09765142]
[1744552087048,1.9915,128.15,128.09,44.09765142]
[1744552087449,1.9915,128.15,128.05,618.0]
[1744552087653,0.05246157,128.11,128.09,0.05349613]
[1744552087853,0.05246157,128.11,128.09,7.8098]
[1744552088050,0.05246157,128.11,128.05,618.0]
[1744552088457,7.8096,128.1,128.05,618.0]
[1744552088657,9.8703,128.1,128.05,618.0]
[1744552088955,9.8703,128.1,128.06,7.8112]
[1744552089161,9.8703,128.1,128.06,0.05118163]
[1744552089562,9.8703,128.1,128.07,7.8107]
[1744552089860,9.8703,128.1,128.06,0.05118163]
[1744552090054,9.8703,128.1,128.05,618.0]
[1744552090055,2.0607,128.1,128.03,7.8135]
[1744552090255,43.4007,128.1,128.01,41.34]
[1744552090457,7.8123,128.06,128.01,41.34]
[1744552090658,43.4007,128.1,128.04,7.813]
[1744552090956,7.8107,128.08,128.04,7.813]
[1744552091356,0.04935959,128.07,128.05,0.05748948]
[1744552091558,7.86065959,128.07,128.03,7.8133]
[1744552091755,0.04935959,128.07,128.01,41.34]
[1744552092259,0.04935959,128.07,127.99,1.35895033]
[1744552092457,41.36,128.06,127.95,41.36]
[1744552092760,7.86993351,128.04,127.95,41.36]
[1744552093060,7.8133,128.04,127.95,41.36]
[1744552093260,0.0511573,128.01,127.95,41.36]
[1744552093759,0.0511573,128.01,128.0,7.8154]
[1744552096163,0.0511573,128.01,127.99,7.8158]
[1744552098263,0.0511573,128.01,127.96,41.36]
[1744552098761,0.0511573,128.01,127.99,7.8156]
[1744552098963,0.0511573,128.01,127.96,41.36]
[1744552099156,0.0511573,128.01,128.0,7.8154]
[1744552102264,0.0511573,128.01,127.99,7.8157]
[1744552102465,0.0511573,128.01,127.96,41.36]
[1744552102661,2.1419573,128.01,127.96,41.36]
[1744552102862,9.9570573,128.01,127.97,7.8169]
[1744552103063,2.1419573,128.01,127.96,41.36]
[1744552103368,9.9570573,128.01,127.97,7.8169]
[1744552103561,9.9570573,128.01,127.96,41.36]
[1744552103961,9.9570573,128.01,127.97,7.8169]
[1744552104165,9.9570573,128.01,127.96,41.36]
[1744552104362,7.8154,128.0,127.96,41.36]
[1744552104563,2.1419573,128.01,127.96,41.36]
[1744552105166,9.9570573,128.01,127.97,7.8169]
[1744552105367,9.9570573,128.01,127.96,41.36]
[1744552105562,0.0511573,128.01,127.96,41.36]
[1744552105966,0.0511573,128.01,128.0,7.8154]
[1744552106162,41.38,128.09,128.0,41.38]
[1744552106363,6.3968,128.1,128.0,41.38]
[1744552106865,7.8102,128.09,128.05,7.8118]
[1744552107070,7.8102,128.09,128.04,41.38]
[1744552107369,0.0526657,128.08,128.06,0.05248702]
[1744552107966,0.0526657,128.08,128.06,7.86398702]
[1744552109670,0.0526657,128.08,128.07,7.8111]
[1744552110472,0.0526657,128.08,128.06,0.05248702]
[1744552110971,0.0526657,128.08,128.06,7.86418702]
[1744552111266,0.0526657,128.08,128.0,41.38]
[1744552111479,41.9848,128.08,127.97,41.35879114]
[1744552111673,4.78330032,128.07,127.97,41.35879114]
[1744552111965,7.8145,128.02,127.97,41.35879114]
[1744552112471,0.04996709,128.01,127.99,7.8156]
[1744552113071,0.04996709,128.01,127.97,40.0]
[1744552114767,0.04996709,128.01,128.0,7.8154]
[1744552116970,0.04996709,128.01,127.95,1.35964055]
[1744552117672,7.86506709,128.01,127.98,7.8163]
[1744552118174,7.86506709,128.01,127.95,1.35964055]
[1744552118376,7.86506709,128.01,127.97,7.8167]
[1744552118578,7.86506709,128.01,127.95,1.35964055]
[1744552118772,0.04996709,128.01,127.95,1.35964055]
[1744552119577,4.8586659,128.01,127.95,7.8182]
[1744552119868,2.1462,128.0,127.95,7.8182]
[1744552120072,2.1462,128.0,127.94,47.8188]
[1744552120269,4.80869881,127.99,127.91,40.0]
[1744552120468,4.86268653,127.98,127.9,1.36001251]
[1744552120772,4.80869881,127.97,127.92,7.82]
[1744552121071,4.80869881,127.97,127.9,1.36001251]
[1744552121072,0.05966698,127.95,127.9,41.36001251]
[1744552121576,0.05966698,127.95,127.9,40.0]
[1744552121778,0.05966698,127.95,127.9,41.36011881]
[1744552122275,0.05966698,127.95,127.94,7.8187]
[1744552123777,0.05966698,127.95,127.9,41.36011881]
[1744552123977,0.05966698,127.95,127.87,658.84]
[1744552124276,7.8182,127.96,127.92,7.8199]
[1744552124477,42.1662,128.0,127.87,660.20038466]
[1744552124677,0.05099044,127.95,127.87,660.20038466]
[1744552124976,4.80461642,127.99,127.87,660.20038466]
[1744552125179,0.056497,127.92,127.87,660.20038466]
[1744552125379,4.80461642,127.98,127.87,660.20038466]
[1744552125573,42.1662,128.0,127.87,660.20038466]
[1744552125574,0.05949613,127.91,127.87,660.20038466]
[1744552125775,7.8173,127.97,127.87,660.20038466]
[1744552125974,3.07e-06,127.9,127.87,660.20038466]
[1744552126175,4.80461642,127.96,127.93,7.8191]
[1744552126478,4.80461642,127.96,127.88,62.0]
[1744552127079,0.0527676,127.93,127.91,0.05273544]
[1744552127384,0.0527676,127.93,127.92,7.8203]
[1744552128579,4.80461642,127.96,127.91,40.07273544]
[1744552129077,4.2564,128.01,127.92,0.4445]
[1744552129975,0.0557181,127.98,127.95,0.05138739]
[1744552130178,0.0557181,127.98,127.96,40.02]
[1744552130676,0.0557181,127.98,127.97,7.8173]
[1744552134080,1.81e-05,127.98,127.97,7.8173]
[1744552135182,1.81e-05,127.98,127.95,0.05138739]
[1744552137083,1.81e-05,127.98,127.96,7.8176]
[1744552138285,1.81e-05,127.98,127.97,7.8173]
[1744552138987,1.81e-05,127.98,127.97,47.8373]
[1744552140988,1.81e-05,127.98,127.95,0.05138739]
[1744552141487,1.81e-05,127.98,127.96,7.8178]
[1744552141687,1.81e-05,127.98,127.95,39.81138739]
[1744552142084,1.81e-05,127.98,127.97,7.8173]
[1744552144087,1.81e-05,127.98,127.97,69.8173]
[1744552145989,1.81e-05,127.98,127.97,7.8173]
[1744552148489,1.81e-05,127.98,127.97,626.7173]
[1744552148793,1.81e-05,127.98,127.97,634.5373]
[1744552148991,1.81e-05,127.98,127.97,696.5373]
[1744552149192,1.81e-05,127.98,127.97,688.7173]
[1744552155399,1.81e-05,127.98,127.97,626.7173]
[1744552156005,1.81e-05,127.98,127.96,7.8176]
[1744552156199,1.81e-05,127.98,127.95,0.05138739]
[1744552156707,1.81e-05,127.98,127.95,7.86948739]
[1744552157004,1.81e-05,127.98,127.97,7.8173]
[1744552157302,1.81e-05,127.98,127.96,39.74]
[1744552157502,1.81e-05,127.98,127.96,47.5574]
[1744552157702,1.81e-05,127.98,127.96,39.74]
[1744552158201,1.81e-05,127.98,127.97,7.8173]
[1744552168809,1.81e-05,127.98,127.96,47.5579]
[1744552169009,1.81e-05,127.98,127.94,1.35953432]
[1744552169308,7.8174,127.97,127.92,39.76]
[1744552169604,7.8174,127.97,127.93,7.8194]
[1744552169808,39.76,128.02,127.93,7.8194]
[1744552169998,7.818,127.96,127.93,7.8194]
[1744552170501,39.76,128.02,127.93,0.05207255]
[1744552170697,0.05616721,127.96,127.91,1.36014539]
[1744552170899,39.76,127.97,127.84,27.53259263]
[1744552171207,39.76,127.96,127.8,27.53259263]
[1744552171409,403.76,127.95,127.8,27.53259263]
[1744552171608,364.0,127.94,127.8,27.53259263]
[1744552172007,0.05340044,127.88,127.8,27.53259263]
[1744552172205,38.79340044,127.88,127.8,27.53259263]
[1744552172405,38.74,127.91,127.8,27.53259263]
[1744552172606,402.74,127.94,127.8,27.53259263]
[1744552172811,38.74,127.94,127.8,27.53259263]
[1744552173013,38.74,127.94,127.8,29.59749263]
[1744552173310,0.05637632,127.88,127.87,7.823]
[1744552173610,38.74,127.94,127.86,38.76]
[1744552173811,0.04995508,127.89,127.86,38.76]
[1744552174711,0.04995508,127.89,127.88,7.8228]
[1744552176111,5.508e-05,127.89,127.88,7.8228]
[1744552177019,5.508e-05,127.89,127.88,15.6428]
[1744552177315,5.508e-05,127.89,127.88,17.6185]
[1744552177914,1.9997,127.98,127.97,7.8173]
[1744552180414,1.9997,127.98,127.96,7.86860799]
[1744552180813,1.9997,127.98,127.96,0.05100799]
[1744552181612,1.9997,127.98,127.96,7.86850799]
[1744552181815,1.9997,127.98,127.96,0.05100799]
[1744552182018,1.9997,127.98,127.92,619.2]
[1744552182019,9.8197,127.98,127.92,7.8202]
[1744552182214,2.0459,127.97,127.89,38.76]
[1744552182616,2.0555,127.96,127.89,38.76]
[1744552183021,0.05308511,127.94,127.91,7.8209]
[1744552183719,0.05308511,127.94,127.89,38.76]
[1744552184319,0.05308511,127.94,127.92,7.8199]
[1744552185617,0.05308511,127.94,127.89,38.76]
[1744552186223,0.05308511,127.94,127.91,7.8205]
[1744552186423,0.05308511,127.94,127.89,38.76]
[1744552186623,0.05308511,127.94,127.86,40.11985307]
[1744552186823,40.8155,127.96,127.89,7.822]
[1744552187318,7.8201,127.93,127.89,7.822]
[1744552187519,0.05969016,127.94,127.88,7.8226]
[1744552187720,40.8155,127.96,127.88,7.8226]
[1744552187916,7.87890296,127.92,127.86,38.76]
[1744552188120,0.05830296,127.92,127.91,7.8209]
[1744552188823,0.05830296,127.92,127.9,46.5813]
[1744552189118,0.05830296,127.92,127.87,38.76]
[1744552189624,7.8212,127.91,127.87,38.76]
[1744552189825,9.8449,127.91,127.87,38.76]
[1744552190120,7.8227,127.89,127.85,9.18462401]
[1744552190327,2.0237,127.91,127.81,38.76]
[1744552190328,2.1299,127.9,127.81,38.76]
[1744552190516,0.05797444,127.88,127.82,38.76]
[1744552190716,2.0124,127.89,127.83,38.76]
[1744552190916,0.0539403,127.86,127.84,38.76]
[1744552191124,0.0539403,127.86,127.83,1.36091666]
[1744552191329,0.0539403,127.86,127.85,7.8246]
[1744552193228,0.0539403,127.86,127.85,69.8246]
[1744552193426,0.0539403,127.86,127.85,7.8246]
[1744552195230,0.0539403,127.86,127.84,46.585]
[1744552196827,0.0539403,127.86,127.84,7.825]
[1744552197131,0.0539403,127.86,127.81,40.12110296]
[1744552197434,0.0539403,127.86,127.83,7.8254]
[1744552198638,0.0539403,127.86,127.84,7.8252]
[1744552200237,0.0539403,127.86,127.83,7.8257]
[1744552200432,0.0539403,127.86,127.81,40.12104973]
[1744552200931,7.8249,127.85,127.82,7.8261]
[1744552201635,7.8252,127.84,127.81,46.5868]
[1744552202329,7.8252,127.84,127.82,7.8264]
[1744552202525,2.0324,127.85,127.81,38.76]
[1744552202730,0.0539403,127.86,127.81,38.76]
[1744552202936,7.8779403,127.86,127.81,38.76]
[1744552203433,0.0539403,127.86,127.82,7.8261]
[1744552203836,0.0539403,127.86,127.83,7.8258]
[1744552204036,7.8783403,127.86,127.83,7.8258]
[1744552204238,0.0539403,127.86,127.81,38.76]
[1744552204538,0.0539403,127.86,127.85,7.8246]
[1744552206943,0.0539403,127.86,127.85,45.5846]
[1744552209342,0.0539403,127.86,127.82,37.76]
[1744552209941,0.0539403,127.86,127.83,7.8255]
[1744552210142,0.0539403,127.86,127.8,1.3609965]
[1744552210335,0.0539403,127.86,127.76,37.76]
[1744552210531,37.76,127.89,127.79,1.36144908]
[1744552210737,0.05102418,127.82,127.8,37.76]
[1744552210939,7.8237,127.87,127.83,7.8252]
[1744552211245,0.0575419,127.86,127.83,7.8252]
[1744552211742,0.0575419,127.86,127.8,37.76]
[1744552212241,0.0575419,127.86,127.8,39.821]
[1744552212544,4.1128,127.93,127.81,621.5472]
[1744552212943,4.1128,127.93,127.89,7.8218]
[1744552213445,11.9325,127.93,127.89,7.8218]
[1744552213645,0.05396102,127.92,127.9,0.05297673]
[1744552215155,0.05396102,127.92,127.85,37.76]
[1744552215359,7.8216,127.9,127.87,7.8231]
[1744552215652,37.81396102,127.92,127.82,37.76]
[1744552215863,2.0681,127.89,127.79,37.76]
[1744552216155,7.88390587,127.85,127.82,7.8263]
[1744552216956,7.8254,127.84,127.81,7.8267]
[1744552217254,0.05900587,127.85,127.79,37.76]
[1744552218048,0.05900587,127.85,127.77,1.36126269]
[1744552218254,37.76,127.84,127.76,37.76]
[1744552218455,0.05303321,127.82,127.76,37.76]
[1744552218655,7.8276,127.81,127.77,7.829]
[1744552218953,0.05303321,127.82,127.76,37.76]
[1744552219152,0.05303321,127.82,127.81,7.827]
[1744552220258,2.1222,127.88,127.8,37.76]
[1744552220457,37.76,127.9,127.8,37.76]
[1744552220852,7.8219,127.9,127.86,7.8239]
[1744552221452,0.0496706,127.89,127.87,0.05807557]
[1744552221859,7.8720706,127.89,127.87,0.05807557]
[1744552222459,0.0496706,127.89,127.87,0.05807557]
[1744552223963,0.0496706,127.89,127.87,7.88127557]
[1744552224463,7.8718706,127.89,127.87,7.88127557]
[1744552224664,7.8718706,127.89,127.87,0.05807557]
[1744552224866,0.0496706,127.89,127.87,0.05807557]
[1744552226367,37.76,127.88,127.78,37.76]
[1744552227467,7.8261,127.83,127.8,7.8272]
[1744552227670,0.05188646,127.84,127.78,37.76]
[1744552228770,0.05188646,127.84,127.83,7.8258]
[1744552231877,0.05188646,127.84,127.82,7.8262]
[1744552232275,0.05188646,127.84,127.78,37.76]
[1744552232973,0.05188646,127.84,127.78,99.76]
[1744552233674,0.05188646,127.84,127.82,7.8261]
[1744552234575,7.87718646,127.84,127.78,37.76]
[1744552234877,7.87718646,127.84,127.8,7.8271]
[1744552235575,7.87718646,127.84,127.81,7.8269]
[1744552235971,0.05188646,127.84,127.78,37.76]
[1744552236475,0.05188646,127.84,127.81,7.8267]
[1744552236976,0.05188646,127.84,127.78,37.76]
[1744552237172,0.05188646,127.84,127.77,1.36142245]
[1744552237375,0.05188646,127.84,127.75,619.48]
[1744552237573,36.4,127.85,127.81,7.8267]
[1744552237977,7.87813501,127.84,127.81,7.8267]
[1744552238377,0.05243501,127.84,127.81,7.8267]
[1744552238876,7.8259,127.83,127.8,7.8273]
[1744552239076,36.4,127.85,127.76,2.029]
[1744552239277,0.05722424,127.83,127.76,2.029]
[1744552239677,7.8267,127.82,127.79,7.8279]
[1744552240277,7.88332424,127.83,127.8,7.8276]
[1744552240477,1.9697,127.84,127.76,2.029]
[1744552240678,0.05444343,127.83,127.76,2.029]
[1744552240976,7.8269,127.82,127.79,7.8282]
[1744552241171,0.05444343,127.83,127.76,2.029]
[1744552241373,7.8262,127.83,127.79,7.8277]
[1744552241574,0.05676146,127.81,127.79,7.8277]
[1744552241878,0.05676146,127.81,127.76,2.029]
[1744552242077,0.05676146,127.81,127.8,7.8276]
[1744552242680,0.05676146,127.81,127.79,7.828]
[1744552244283,0.05676146,127.81,127.8,7.8276]
[1744552245280,44.27676146,127.81,127.63,27.53259263]
[1744552245483,370.3465,127.8,127.63,27.53259263]
[1744552245780,0.05263558,127.73,127.63,27.53259263]
[1744552245972,0.05263558,127.73,127.64,36.4]
[1744552246176,5.4752076,127.72,127.65,1.9786]
[1744552246477,7.8328,127.72,127.65,1.9786]
[1744552246678,0.05237856,127.7,127.65,1.9786]
[1744552246878,0.05237856,127.7,127.68,7.8347]
[1744552247183,0.05237856,127.7,127.65,1.9786]
[1744552247585,0.05237856,127.7,127.64,66.11059263]
[1744552247786,0.05237856,127.7,127.66,7.8359]
[1744552247980,0.05237856,127.7,127.64,66.11059263]
[1744552248580,0.05237856,127.7,127.66,7.8359]
[1744552249080,0.05237856,127.7,127.65,7.8366]
[1744552249283,0.05237856,127.7,127.64,63.93259263]
[1744552249484,0.05237856,127.7,127.65,2.1229]
[1744552249686,0.05237856,127.7,127.67,7.8353]
[1744552250185,0.05237856,127.7,127.65,2.1229]
[1744552250386,0.05237856,127.7,127.64,36.4]
[1744552250984,5.49305767,127.7,127.64,36.4]
[1744552251380,7.8347,127.69,127.64,44.2371]
[1744552251683,0.05237856,127.7,127.64,36.4]
[1744552251886,5.48834954,127.7,127.64,36.4]
[1744552252088,7.835,127.69,127.64,44.2373]
[1744552252286,0.05237856,127.7,127.64,36.4]
[1744552252979,7.8378,127.64,127.6,44.2597]
[1744552253181,2.1694,127.69,127.55,1.9848]
[1744552253385,2.1154,127.63,127.54,36.42]
[1744552253587,38.5354,127.63,127.54,36.42]
[1744552253887,0.05367131,127.6,127.54,36.42]
[1744552254083,0.05367131,127.6,127.59,7.8405]
[1744552254687,0.05367131,127.6,127.58,7.841]
[1744552254986,0.05367131,127.6,127.54,34.261]
[1744552255983,0.05367131,127.6,127.52,2.0154]
[1744552256188,36.44,127.62,127.4,253.74811789]
[1744552256189,369.40212585,127.59,127.45,1.3643581]
[1744552256384,664.15532585,127.58,127.45,1.3643581]
[1744552256686,658.7532,127.58,127.44,29.67879263]
[1744552257076,0.0531977,127.52,127.44,29.67879263]
[1744552257281,5.37747496,127.57,127.43,74.7852473]
[1744552257478,36.46,127.56,127.43,73.42024701]
[1744552257678,0.05896561,127.49,127.43,73.42024701]
[1744552258084,0.05896561,127.49,127.43,75.45054701]
[1744552258482,0.05896561,127.49,127.43,73.42024701]
[1744552259082,0.05896561,127.49,127.42,46.07374359]
[1744552259289,36.46,127.48,127.42,39.50354359]
[1744552259490,2.0338,127.47,127.37,27.37299686]
[1744552259888,0.05745945,127.43,127.37,27.37299686]
[1744552260092,36.46,127.42,127.37,27.37299686]
[1744552260593,7.8534,127.39,127.37,27.37299686]
[1744552260791,36.46,127.42,127.37,27.37299686]
[1744552261087,7.8535,127.38,127.36,72.9946583]
[1744552261289,0.0547386,127.39,127.36,69.89615516]
[1744552262397,7.8541,127.37,127.36,69.89615516]
[1744552262693,0.0547386,127.39,127.32,37.32]
[1744552262893,2.0338,127.47,127.32,37.32]
[1744552263086,0.0526034,127.37,127.31,3.38909788]
[1744552263289,7.8565,127.34,127.21,37.34]
[1744552263483,7.8565,127.34,127.22,39.4413]
[1744552263688,37.34,127.35,127.23,37.34]
[1744552263889,0.05213178,127.29,127.28,7.8596]
[1744552264089,37.34,127.41,127.29,2.1013]
[1744552264286,629.0311,127.42,127.35,7.8551]
[1744552264490,621.18,127.42,127.32,37.34]
[1744552264798,9.8323,127.45,127.32,37.34]
[1744552264999,2.0338,127.47,127.32,658.52]
[1744552265291,0.05594567,127.4,127.37,0.05776417]
[1744552265597,71.11181112,127.46,127.37,37.34]
[1744552265797,0.05732936,127.4,127.37,37.39106214]
[1744552265990,7.8493,127.45,127.37,37.34]
[1744552266294,0.05580447,127.4,127.37,37.34]
[1744552266700,0.05580447,127.4,127.38,7.8529]
[1744552267195,0.05580447,127.4,127.37,37.39039643]
[1744552267196,0.05580447,127.4,127.37,0.99668184]
[1744552268097,0.05580447,127.4,127.37,39.1]
[1744552268297,0.05580447,127.4,127.32,358.0]
[1744552268491,0.05580447,127.4,127.3,39.1]
[1744552268690,7.8523,127.4,127.34,7.8553]
[1744552268994,39.1,127.43,127.3,39.1]
[1744552269194,7.8536,127.38,127.33,7.8564]
[1744552269395,7.90965692,127.38,127.33,7.8564]
[1744552269797,0.05605692,127.38,127.33,7.8564]
[1744552270099,0.05605692,127.38,127.3,39.1]
[1744552270489,0.05777055,127.35,127.3,39.1]
[1744552270689,2.0338,127.47,127.3,397.1]
[1744552270890,39.1,127.46,127.3,397.1]
[1744552271091,7.8503,127.44,127.3,397.1]
[1744552271288,7.8503,127.44,127.38,7.853]
[1744552271489,39.1,127.46,127.38,7.853]
[1744552271795,7.8495,127.45,127.41,0.05632301]
[1744552271999,0.05314214,127.43,127.41,0.05632301]
[1744552272695,39.1,127.42,127.32,39.1]
[1744552272896,7.8533,127.39,127.34,7.8555]
[1744552273293,39.1,127.38,127.28,39.1]
[1744552273497,7.8559,127.35,127.3,7.8578]
[1744552273701,39.1,127.38,127.28,39.1]
[1744552274001,0.05542313,127.34,127.28,39.1]
[1744552274203,0.05542313,127.34,127.33,7.8565]
[1744552275097,41.1668,127.43,127.32,39.12]
[1744552275403,39.12,127.43,127.32,39.12]
[1744552275600,7.8516,127.41,127.32,39.12]
[1744552275802,7.8516,127.41,127.33,64.0458]
[1744552276102,0.05344219,127.38,127.36,0.05657605]
[1744552276496,7.8512,127.42,127.37,7.8541]
[1744552276696,0.05575907,127.38,127.37,7.8541]
[1744552276898,46.9705,127.43,127.36,0.05657605]
[1744552277093,0.05673689,127.39,127.36,0.05657605]
[1744552278602,39.17673689,127.39,127.29,41.1213]
[1744552278805,39.17673689,127.39,127.3,4.0484]
[1744552279099,39.12,127.39,127.3,4.0484]
[1744552279804,0.05976549,127.36,127.3,4.0484]
[1744552280394,7.8512,127.42,127.3,4.0484]
[1744552280595,39.12,127.43,127.3,4.0484]
[1744552281002,7.8512,127.42,127.37,7.8536]
[1744552281301,39.12,127.43,127.36,39.12]
[1744552281502,0.05141867,127.41,127.39,7.8525]
[1744552283507,39.12,127.46,127.39,7.8525]
[1744552284203,39.12,127.46,127.32,39.12]
[1744552284410,39.12,127.46,127.32,41.2247]
[1744552284606,0.04998812,127.4,127.38,0.0527888]
[1744552284806,7.90228812,127.4,127.38,0.0527888]
[1744552285014,7.8523,127.4,127.32,41.2247]
[1744552285212,7.8523,127.4,127.31,1.36596471]
[1744552285213,39.12,127.39,127.27,39.12]
[1744552285412,7.8557,127.35,127.27,1.972]
[1744552285616,39.12,127.39,127.27,1.972]
[1744552285816,2.0551,127.38,127.28,7.8596]
[1744552286016,2.0551,127.38,127.27,1.972]
[1744552286215,2.0551,127.38,127.25,39.12]
[1744552286418,2.0551,127.38,127.31,0.05173724]
[1744552286419,7.8567,127.33,127.31,0.05173724]
[1744552287015,7.91503143,127.34,127.31,0.05173724]
[1744552287217,0.05873143,127.34,127.31,0.05173724]
[1744552287614,0.05873143,127.34,127.31,7.90903724]
[1744552288219,0.05873143,127.34,127.33,7.8565]
[1744552288917,0.05873143,127.34,127.33,7.80055615]
[1744552289312,0.05873143,127.34,127.32,2.1781]
[1744552289313,0.05873143,127.34,127.32,10.035]
[1744552289512,0.05873143,127.34,127.32,2.1781]
[1744552289713,71.11181112,127.38,127.32,2.1781]
[1744552289917,71.11181112,127.38,127.33,39.14]
[1744552290419,71.11181112,127.38,127.34,1.9955]
[1744552290620,71.11181112,127.4,127.34,1.9955]
[1744552290821,0.05422918,127.37,127.35,0.05121324]
[1744552291010,0.05422918,127.37,127.36,7.8543]
[1744552292324,0.05422918,127.37,127.35,0.05121324]
[1744552293024,19.62252425,127.37,127.35,0.05121324]
[1744552293320,19.62252425,127.37,127.28,1.36647426]
[1744552293518,19.62252425,127.37,127.3,4.0068]
[1744552293716,27.47682425,127.37,127.3,4.0068]
[1744552293916,19.62252425,127.37,127.31,39.14]
[1744552294324,19.62252425,127.37,127.33,0.05010342]
[1744552294921,1038.36040203,127.36,127.13,7.8689]
[1744552295224,7.8627,127.24,127.11,1.36754824]
[1744552295523,5.36736043,127.23,127.12,40.52]
[1744552295724,45.88736043,127.22,127.12,40.52]
[1744552295923,5.36659613,127.21,127.12,40.52]
[1744552296118,7.9227951,127.18,127.16,0.02115695]
[1744552296320,0.0565951,127.18,127.16,0.02115695]
[1744552296521,40.54,127.24,127.09,662.5]
[1744552296722,0.05182997,127.18,127.16,0.02115695]
[1744552296923,5.36875123,127.23,127.12,40.54]
[1744552297124,5.36875123,127.23,127.14,7.8677]
[1744552297325,0.05034565,127.18,127.16,0.02115695]
[1744552297522,5.36875123,127.23,127.16,0.02115695]
[1744552297723,0.06046833,127.18,127.16,0.02115695]
[1744552297916,7.865,127.2,127.16,0.02115695]
[1744552298121,0.05449245,127.18,127.16,0.02115695]
[1744552298316,0.05449245,127.18,127.17,0.02272928]
[1744552298521,7.8658,127.18,127.17,0.02272928]
[1744552298723,5.4295913,127.18,127.11,1.36838173]
[1744552298922,5.36895129,127.17,127.07,40.54]
[1744552299126,5.36895129,127.17,127.07,41.90886616]
[1744552299525,5.36895129,127.16,127.07,1.36886616]
[1744552299727,5.36538417,127.15,127.02,46.2]
[1744552299926,0.05598222,127.13,127.07,1.36913544]
[1744552300122,7.8681,127.15,127.08,2.1854]
[1744552300431,47.68,127.21,127.08,2.1854]
[1744552300731,5.36656735,127.2,127.08,2.1854]
[1744552300928,5.36656735,127.19,127.08,2.1854]
[1744552301123,7.40566735,127.18,127.08,2.1854]
[1744552301327,5.36656735,127.17,127.08,2.1854]
[1744552301623,0.05731288,127.14,127.12,0.05408443]
[1744552301832,5.35764653,127.13,126.96,358.0]
[1744552302027,5.35764653,127.12,127.01,2.0709]
[1744552302226,61.83674653,127.11,126.84,57.88]
[1744552302431,65.93764653,127.1,126.88,1.9947]
[1744552302633,627.97764653,127.09,126.89,2.0709]
[1744552302935,7.8795,126.96,126.89,2.0709]
[1744552303126,0.05944988,127.0,126.89,0.7109]
[1744552303322,2.0391,127.02,126.82,2.1271]
[1744552303526,0.05826146,126.96,126.88,7.8844]
[1744552303728,2.0391,127.02,126.83,1.57691397]
[1744552303924,627.93927291,127.01,126.83,1.57691397]
[1744552304233,0.05772205,126.93,126.83,1.57691397]
[1744552304434,0.05772205,126.93,126.84,4.2791]
[1744552304634,2.0391,127.02,126.85,62.0]
[1744552305140,2.0391,127.02,126.86,1.44778091]
[1744552305337,2.0391,127.02,126.84,4.2791]
[1744552305539,67.98,127.11,126.85,3.02436749]
[1744552305733,6.67667191,127.1,126.86,3.0242432]
[1744552305938,2.0953,127.1,126.87,3.02411894]
[1744552306241,0.06002256,126.99,126.97,0.05089192]
[1744552306439,2.0953,127.1,126.98,7.8782]
[1744552306739,2.0953,127.1,126.94,69.86]
[1744552306935,2.0953,127.1,126.98,7.8782]
[1744552307141,2.0953,127.1,126.95,4.2193]
[1744552307342,4.2109,127.09,126.95,4.2193]
[1744552307542,4.2109,127.09,126.88,1.57629255]
[1744552307844,6.65860612,127.08,126.88,1.57629255]
[1744552308144,6.65860612,127.07,126.88,1.57629255]
[1744552308333,629.91860612,127.06,126.88,1.57629255]
[1744552308537,76.53860612,127.05,126.88,1.57629255]
[1744552308740,1.38257606,127.04,126.88,1.57629255]
[1744552308938,0.05190878,126.98,126.95,0.05118881]
[1744552309239,2.036,127.03,126.88,1.57629255]